[Event "4th Tata Steel India Blitz Women 2022"]
[Site "Kolkota"]
[Date "2022.12.03"]
[Round "4.5"]
[White "Koneru, Humpy"]
[Black "Harika, Dronavalli"]
[Result "0-1"]
[ECO "B07"]
[WhiteElo "2574"]
[BlackElo "2507"]
[Annotator "TA"]
[PlyCount "72"]
[EventDate "2022.11.29"]
[EventType "tourn"]
[EventCountry "IND"]
[SourceTitle "playchess.com"]
[Source "ChessBase"]
[SourceQuality "1"]
[TimeControl "180+2"]

{[%evp 16,72,44,47,54,56,64,50,58,37,25,33,14,21,47,42,34,0,0,0,0,0,0,0,150,124,120,-84,-68,-64,-20,-106,-109,-91,0,-85,0,0,173,0,270,0,0,-58,0,0,15,-2,0,0,172,0,0,-13,-20,-15,-14,-206,-199]} 1. d4 {[%emt 0:00:01]} d6 {[%emt 0:00:01]} 2. Nf3 {[%emt 0:00:03]} g6 {[%emt 0:00:01]} 3. e4 {[%emt 0:00:05]} Bg7 {[%emt 0:00:02]} 4. Bd3 {[%emt 0:00:08]} Nf6 {[%emt 0:00:15][%cal Bg8f6,Bf6h5,Bh5f4][%mdl 32]} 5. O-O {[%emt 0:00:06]} O-O {[%emt 0:00:02]} 6. h3 {[%emt 0:00:05]} Nc6 {[%emt 0:00:01]} 7. c3 {[%emt 0:00:14]} e5 {[%emt 0:00:02]} 8. Be3 {[%emt 0:00:45]} Nh5 {[%emt 0:00:31]} 9. Re1 {[%emt 0:00:13]} h6 {[%emt 0:00:13] 9...Nf4 is vanishing. B07: Pirc Defence: Miscellaneous Systems.} 10. Nbd2 {[%emt 0:00:05]} Nf4 {[%emt 0:00:27]} 11. Bf1 {[%emt 0:00:15]} (11. Bxf4 {simplifies} exf4 12. b4 Ne7 13. Rb1) 11... g5 {[%emt 0:00:02] White is slightly better.} 12. dxe5 {[%emt 0:00:07]} dxe5 {[%emt 0:00:21]} 13. Bc5 {[%emt 0:00:01]} Re8 {[%emt 0:00:03]} 14. Nc4 {[%emt 0:00:02]} Qf6 {[%emt 0:00:53] [#]} 15. Ne3 $146 {[%emt 0:00:15] Inhibits g4.} ({Predecessor:} 15. Nh2 Be6 16. Ne3 Rad8 17. Qc2 h5 18. Rad1 b6 19. Ba3 Ne7 20. Bxe7 Qxe7 21. Nf5 Qf6 22. g3 Ng6 23. Be2 Bxf5 24. exf5 Ne7 25. Bxh5 Qxf5 26. Qxf5 {½-½ (26) Margl,R (2293)-Galyas,M (2448) Ajka 2021}) 15... Be6 {[%emt 0:00:01]} 16. Nd5 {[%emt 0:00:28]} Bxd5 {[%emt 0:00:01]} 17. exd5 {[%emt 0:00:02]} Rad8 {[%emt 0:00:01]} 18. c4 {[%emt 0:00:02]} e4 {[%emt 0:00:03] Prevents g3.} 19. Nd2 {[%emt 0:00:06]} Qxb2 {[%emt 0:00:23]} (19... b6 $11 20. Ba3 Nd4) 20. Rb1 $16 {[%emt 0:00:07][%mdl 64] Skewer} Qxa2 {[%emt 0:00:01]} 21. Nxe4 $2 {[%emt 0:00:12]} ({Reject} 21. Rxe4 $6 Rxe4 22. Nxe4 Na5 $11) (21. Rxb7 $16 f5 22. Rxc7) 21... b6 $17 {[%emt 0:00:10]} 22. g3 {[%emt 0:00:12]} Ng6 $36 {[%emt 0:00:07][%mdl 2048] White is under pressure. Black is much more active. Pair of Knights!} (22... Nxh3+ {simplifies} 23. Bxh3 bxc5 24. Bf1 Ne5) 23. Bb4 {[%emt 0:00:04]} (23. Re2 $1 $11 {keeps the balance.} Qa6 24. Bb4) 23... Nxb4 {[%emt 0:00:01]} 24. Rxb4 {[%emt 0:00:02]} Qa3 {[%emt 0:00:01]} (24... f5 $17 25. Re2 Qa3) 25. Rb3 {[%emt 0:00:01]} (25. Ra4 $11 Qf8 26. Rxa7) 25... Qa2 {[%emt 0:00:01]} (25... Qf8 $17) 26. Rbe3 {[%emt 0:00:02] Nc3 is the strong threat.} Kh8 $2 {[%emt 0:00:02] [#]} (26... Re5 $11) 27. Bg2 $2 {[%emt 0:00:02]} (27. Nxg5 $1 $18 {[%mdl 512]} Rf8 28. Qh5) 27... a5 $2 {[%emt 0:00:01][%mdl 8192]} (27... Qxc4 $2 28. Nd6 $1 {[%mdl 512]} cxd6 29. Rxe8+ Rxe8 30. Rxe8+ Kh7 31. Ra8 $18) (27... Re5 $11) 28. Qf3 $2 {[%emt 0:00:03]} (28. Nc3 $18 Bxc3 29. Rxe8+ Rxe8 30. Rxe8+ Kg7 31. Be4) 28... Rf8 $11 {[%emt 0:00:03]} (28... Qxc4 $2 29. Nxg5 $1 Rf8 30. Nxf7+ Kg8 31. Nxd8 Rxf3 32. Bxf3 $18) (28... Ne5 $2 29. Qf5 Qc2 30. Nd6 $1 {[%mdl 512]} (30. Rc3 Qb2 $16) 30... Qxf5 31. Nxf5 $18) 29. Nf6 {[%emt 0:00:02]} (29. Bf1 $11) 29... Qb2 {[%emt 0:00:01]} ({Black should try} 29... Qxc4 $15 30. Qf5 Bxf6 31. Qxf6+ Kg8) 30. Nh5 $1 {[%emt 0:00:02]} a4 {[%emt 0:00:01]} 31. R1e2 {[%emt 0:00:02]} Qa1+ {[%emt 0:00:00]} 32. Kh2 {[%emt 0:00:01]} Ra8 $2 {[%emt 0:00:02] [#]} (32... Qd1 $11 {and Black stays safe.}) 33. d6 $2 {[%emt 0:00:03]} ({Only move:} 33. Qf5 $1 $18) 33... cxd6 {[%emt 0:00:01]} 34. Nxg7 {[%emt 0:00:02]} (34. Qf5 $5 {[%cal Rg2a8]} Rac8 35. Bd5 $11) 34... Kxg7 {[%emt 0:00:01]} 35. Ra3 {[%emt 0:00:03]} Qd4 {[%emt 0:00:04]} 36. Qc6 {[%emt 0:00:09] Prevents Rfe8.} (36. Rd3 $11 Qc5 37. Rd5) 36... Ra5 {[%emt 0:00:02] What a bad dream for White.   Weighted Error Value: White=0.55/Black=0.52} ({Not} 36... Ne5 37. Qd5 Qxd5 38. Bxd5) 0-1

[Event "4th Tata Steel India Blitz Women 2022"]
[Site "Kolkota"]
[Date "2022.12.03"]
[Round "5.1"]
[White "Savitha Shri B"]
[Black "Koneru, Humpy"]
[Result "0-1"]
[ECO "C42"]
[WhiteElo "2411"]
[BlackElo "2574"]
[Annotator "TA"]
[PlyCount "112"]
[EventDate "2022.11.29"]
[EventType "tourn"]
[EventCountry "IND"]
[SourceTitle "playchess.com"]
[Source "ChessBase"]
[SourceQuality "1"]
[TimeControl "180+2"]

{[%evp 17,112,22,37,33,56,20,26,12,20,8,23,0,14,9,12,-103,-101,-102,0,0,-22,-127,-91,-106,-89,-101,-101,-127,-116,-128,-100,-99,-105,-111,-122,-125,-44,-33,-59,-284,-229,-213,-154,-237,-187,-304,-226,-342,-335,-324,-333,-475,-475,-574,-576,-560,-548,-590,-601,-602,-611,-616,-583,-582,-590,-578,-579,-599,-592,-1039,-621,-725,-587,-598,-599,-577,-564,-1053,-756,-1055,-1025,-2462,-2394,-2467,-2483,-2685,-1340,-29974,-29975,-29981,-29982,-29982,-29983,-29983,-29984,-29986,-29987]} 1. e4 {[%emt 0:00:01]} e5 {[%emt 0:00:01]} 2. Nf3 {[%emt 0:00:00]} Nf6 {[%emt 0:00:02]} 3. Nxe5 {[%emt 0:00:03]} d6 {[%emt 0:00:01]} 4. Nf3 {[%emt 0:00:01]} Nxe4 {[%emt 0:00:02]} 5. Nc3 {[%emt 0:00:01]} Nxc3 {[%emt 0:00:02]} 6. dxc3 {[%emt 0:00:02]} Be7 {[%emt 0:00:02]} 7. Be3 {[%emt 0:00:01]} Nc6 {[%emt 0:00:02]} 8. Qd2 {[%emt 0:00:01]} Be6 {[%emt 0:00:02]} 9. O-O-O {[%emt 0:00:02]} a6 {[%emt 0:00:08]} ({But not} 9... Bxa2 10. b3 $16) 10. Kb1 {[%emt 0:00:05] C42: Petroff Defence: 3 Nxe5 and unusual White 3rd moves.} Qd7 {[%emt 0:00:07]} 11. Be2 {[%emt 0:00:05] 11.Ng5 is the modern continuation.} Bf6 {[%emt 0:00:30]} 12. Nd4 {[%emt 0:00:21] White has an edge.} Nxd4 {[%emt 0:00:15]} 13. Bxd4 {[%emt 0:00:04]} Bxd4 {[%emt 0:00:09] [#]} 14. cxd4 $146 {[%emt 0:00:02][%cal Bc3d4,Bd4d5][%mdl 32]} ({Predecessor:} 14. Qxd4 O-O 15. h4 b5 16. Rhe1 a5 17. Bf3 Rab8 18. b3 Qd8 19. Be4 Rb6 20. g4 {½-½ (40) Juras,Z (2361)-Solf,F (2357) GER email 2018}) 14... O-O {[%emt 0:00:18]} 15. d5 {[%emt 0:00:06]} Bf5 {[%emt 0:00:05]} 16. g4 {[%emt 0:00:02]} (16. Rhg1 $11 {remains equal.}) 16... Bxg4 $17 {[%emt 0:00:29]} 17. Rhg1 {[%emt 0:01:06] [#]} f5 {[%emt 0:00:09]} (17... Bf5 $1 $17 18. h4 g6) 18. f3 $11 {[%emt 0:00:13]} Bh5 {[%emt 0:00:03]} 19. Qg5 {[%emt 0:00:01] Prevents g6.} (19. Rg5 $11 {keeps the balance.} Bg6 20. Bd3) 19... Bg6 {[%emt 0:00:20]} 20. Bd3 {[%emt 0:00:08]} Rae8 {[%emt 0:00:08]} 21. h4 {[%emt 0:00:10] h5 is the strong threat.} Qf7 {[%emt 0:00:23] Inhibits h5.} 22. h5 {[%emt 0:00:15]} Bxh5 {[%emt 0:00:09]} 23. Bxf5 {[%emt 0:00:01][%mdl 64] Black must now prevent Be6.} Kh8 {[%emt 0:00:05] aiming for ...Re5.} 24. Be6 {[%emt 0:00:01]} Qg6 {[%emt 0:00:03]} (24... Qxf3 $2 25. Qxg7#) 25. Qh4 {[%emt 0:00:10]} Qh6 $36 {[%emt 0:00:01][%mdl 2048] Black is in control.} 26. Rde1 {[%emt 0:00:15]} Bg6 {[%emt 0:00:02]} ({Inferior is} 26... Rxf3 27. Qc4 $15) (26... Bxf3 $17 27. Qc4 c6) 27. Qg3 $15 {[%emt 0:00:10] Hoping for Rh1.} Rf6 {[%emt 0:00:07]} (27... Qd2 $2 28. Re2 Qf4 29. Qxf4 Rxf4 {[#]} 30. Rxg6 $1 $18 {[%mdl 512]}) 28. Bd7 $2 {[%emt 0:00:06] This costs White the game.} (28. a3 $15) 28... Ref8 {[%emt 0:00:01]} 29. Bg4 {[%emt 0:00:01]} Qf4 {[%emt 0:00:02]} 30. Qh3 {[%emt 0:00:03]} (30. Qxf4 $17 Rxf4 31. b3) 30... h6 {[%emt 0:00:04]} 31. Be6 {[%emt 0:00:04]} (31. Qg2 $142) 31... Kh7 {[%emt 0:00:02]} ({Less strong is} 31... Qxf3 32. Qxf3 Bxc2+ 33. Kxc2 $16) 32. Qg2 {[%emt 0:00:06]} (32. Rg3 $142 Qd2 33. Rc1) 32... Qxf3 $19 {[%emt 0:00:02]} 33. Qd2 {[%emt 0:00:04]} Qf2 {[%emt 0:00:01]} 34. Qc3 {[%emt 0:00:04]} (34. Qc1 $142) 34... c5 {[%emt 0:00:04]} 35. a4 {[%emt 0:00:06]} Rf3 {[%emt 0:00:02]} 36. Qc4 {[%emt 0:00:02]} b5 {[%emt 0:00:02]} 37. axb5 {[%emt 0:00:03]} axb5 {[%emt 0:00:01][%cal Ba6b5,Bb5b4][%mdl 32]} 38. Qe2 {[%emt 0:00:04]} Qxe2 {[%emt 0:00:05]} 39. Rxe2 {[%emt 0:00:01]} Rf1+ {[%emt 0:00:01]} 40. Rxf1 {[%emt 0:00:01]} Rxf1+ {[%emt 0:00:02][%mdl 4096] Endgame KRB-KRB} 41. Ka2 {[%emt 0:00:01]} h5 {[%emt 0:00:02]} 42. Bd7 {[%emt 0:00:03]} b4 {[%emt 0:00:02]} 43. Re6 {[%emt 0:00:02]} Rf6 {[%emt 0:00:01]} 44. Re2 {[%emt 0:00:06]} Kh6 {[%emt 0:00:02]} 45. Kb3 {[%emt 0:00:02]} h4 {[%emt 0:00:02]} 46. c3 {[%emt 0:00:04]} bxc3 {[%emt 0:00:01]} 47. bxc3 {[%emt 0:00:00]} Bd3 {[%emt 0:00:03] Against Bb5} 48. Rh2 {[%emt 0:00:02]} g5 {[%emt 0:00:03]} 49. Be6 {[%emt 0:00:03]} Bf5 {[%emt 0:00:03]} 50. Rf2 {[%emt 0:00:03]} Kg6 {[%emt 0:00:01]} 51. Bg8 {[%emt 0:00:03]} Bd7 {[%emt 0:00:03]} (51... h3 $142 52. Rh2 g4) 52. Bh7+ {[%emt 0:00:01]} Kg7 {[%emt 0:00:01] Black mates.} 53. Re2 {[%emt 0:00:03]} Kxh7 {[%emt 0:00:02]} 54. Re7+ Kg6 {[%emt 0:00:01]} 55. Rxd7 {[%emt 0:00:02]} h3 {[%emt 0:00:01][%cal Bh4h3,Bh3h2][%mdl 32]} 56. Kc4 {[%emt 0:00:03]} h2 {[%emt 0:00:02] Weighted Error Value: White=0.60/Black=0.20 (precise)} 0-1

[Event "4th Tata Steel India Blitz Women 2022"]
[Site "Kolkota"]
[Date "2022.12.03"]
[Round "5.2"]
[White "Vaishali, Rameshbabu"]
[Black "Muzychuk, Mariya"]
[Result "1/2-1/2"]
[ECO "D02"]
[WhiteElo "2454"]
[BlackElo "2528"]
[Annotator "TA"]
[PlyCount "70"]
[EventDate "2022.11.29"]
[EventType "tourn"]
[EventCountry "IND"]
[SourceTitle "playchess.com"]
[Source "ChessBase"]
[SourceQuality "1"]
[TimeControl "180+2"]

{[%evp 9,70,7,3,-6,2,0,0,0,0,4,1,0,0,-7,-10,-7,6,10,11,9,19,12,19,0,15,0,0,0,0,0,0,0,0,0,0,0,0,0,0,0,0,0,0,0,0,0,0,0,0,0,0,0,0,0,0,0,0,0,0,0,0,0,0]} 1. d4 {[%emt 0:00:03]} d5 {[%emt 0:00:01]} 2. Nf3 {[%emt 0:00:02]} Nf6 {[%emt 0:00:01]} 3. Bf4 {[%emt 0:00:02]} Bf5 {[%emt 0:00:01]} 4. e3 {[%emt 0:00:02]} e6 {[%emt 0:00:00]} 5. Bd3 {[%emt 0:00:05]} Bd6 {[%emt 0:00:07] The position is equal.} 6. Ne5 {[%emt 0:00:12] D02: 1 d4 d5 2 Nf3 sidelines, including 2...Nf6 3 g3 and 2...Nf6 3 Bf4.} (6. Bxf5 {simplifies} exf5 7. Bxd6 Qxd6 8. O-O) 6... O-O {[%emt 0:00:07]} (6... Bxd3 {simplifies} 7. cxd3 Nfd7 8. Nxd7 Qxd7 9. Bxd6 Qxd6 10. Nd2 O-O) 7. O-O {[%emt 0:00:13]} Nbd7 {[%emt 0:00:11]} 8. Bxf5 {[%emt 0:00:15]} exf5 {[%emt 0:00:01] [#]} 9. Nd2 $146 {[%emt 0:00:02]} ({Predecessor:} 9. Qd3 g6 10. h3 Re8 11. Nxd7 Qxd7 12. Bh6 c6 13. Nd2 Ne4 14. a3 Re6 15. f4 {0-1 (41) Walton,D (1727)-Holton,J (1918) Llandudno 2017}) 9... Qe7 {[%emt 0:00:13][%cal Rd7e5]} 10. Nxd7 {[%emt 0:00:22]} Qxd7 {[%emt 0:00:02]} 11. Qf3 {[%emt 0:00:49]} Ne4 {[%emt 0:00:03]} (11... Bxf4 {simplifies} 12. Qxf4 Rfe8 13. Rac1 c6) 12. Rfd1 {[%emt 0:00:23]} g6 {[%emt 0:00:31]} 13. Bxd6 {[%emt 0:00:17]} Qxd6 {[%emt 0:00:01]} 14. Nxe4 {[%emt 0:00:19]} fxe4 {[%emt 0:00:03]} 15. Qe2 {[%emt 0:00:01]} f5 {[%emt 0:00:05]} 16. c4 {[%emt 0:00:02]} c6 {[%emt 0:00:02]} 17. Rac1 {[%emt 0:00:02]} f4 {[%emt 0:00:05]} 18. exf4 {[%emt 0:00:12]} Rxf4 {[%emt 0:00:02]} 19. cxd5 {[%emt 0:00:02]} cxd5 {[%emt 0:00:03]} 20. Qe3 {[%emt 0:00:06]} Raf8 {[%emt 0:00:02] Hoping for ...Rxf2.} 21. Rc2 {[%emt 0:00:02]} Kg7 {[%emt 0:00:52]} 22. Rdc1 {[%emt 0:00:02]} R8f7 {[%emt 0:00:01]} ({Much less strong is} 22... Rh4 23. Rc7+ (23. g3 Rh5 $16) 23... Kg8 24. Qg3 $16 (24. Rxb7 $2 {loses.} Qxh2+ 25. Kf1 Qh1+ 26. Ke2 Qxg2 $19)) 23. a3 {[%emt 0:00:04]} Qf6 {[%emt 0:00:04]} 24. Rc7 {[%emt 0:00:05]} Qd6 {[%emt 0:00:17]} 25. Rxf7+ {[%emt 0:00:01]} Rxf7 $11 {[%emt 0:00:01][%mdl 4096] Endgame KQR-KQR} 26. Rc5 {[%emt 0:00:02]} b6 {[%emt 0:00:04]} 27. Rc3 {[%emt 0:00:01]} Rc7 {[%emt 0:00:04]} 28. h3 {[%emt 0:00:04]} a5 {[%emt 0:00:15]} 29. Qc1 {[%emt 0:00:02]} Rxc3 {[%emt 0:00:05]} 30. Qxc3 {[%emt 0:00:01] KQ-KQ} h5 {[%emt 0:00:03]} 31. Qc8 {[%emt 0:00:03]} Qf4 {[%emt 0:00:06]} 32. Qb7+ {[%emt 0:00:02]} Kh6 {[%emt 0:00:01]} 33. Qxb6 {[%emt 0:00:02]} Qc1+ {[%emt 0:00:02]} 34. Kh2 {[%emt 0:00:01] [#] Black must now prevent Qb8.} Qf4+ {[%emt 0:00:03]} 35. Kg1 {[%emt 0:00:01]} Qc1+ {[%emt 0:00:01] An uneventful encounter.   Weighted Error Value: White=0.02 (flawless) /Black=0.02 (flawless)} 1/2-1/2

[Event "4th Tata Steel India Blitz Women 2022"]
[Site "Kolkota"]
[Date "2022.12.03"]
[Round "5.3"]
[White "Kiolbasa, Oliwia"]
[Black "Muzychuk, Anna"]
[Result "0-1"]
[ECO "C80"]
[WhiteElo "2406"]
[BlackElo "2525"]
[Annotator "TA"]
[PlyCount "56"]
[EventDate "2022.11.29"]
[EventType "tourn"]
[EventCountry "IND"]
[SourceTitle "playchess.com"]
[Source "ChessBase"]
[SourceQuality "1"]
[TimeControl "180+2"]

{[%evp 17,56,5,9,6,4,-6,0,0,0,-10,0,0,0,0,0,-16,-6,-7,58,10,10,0,27,20,53,35,43,33,30,41,43,28,47,-153,-152,-258,-254,-808,-867,-852,-817]} 1. e4 {[%emt 0:00:01]} e5 {[%emt 0:00:00]} 2. Nf3 {[%emt 0:00:01]} Nc6 3. Bb5 {[%emt 0:00:01][%cal Bf1b5,Bb5a4,Ba4b3][%mdl 32]} a6 4. Ba4 {[%emt 0:00:02]} Nf6 {[%emt 0:00:02]} 5. O-O {[%emt 0:00:02]} Nxe4 {[%emt 0:00:01]} 6. d4 {[%emt 0:00:01]} b5 {[%emt 0:00:00]} 7. Bb3 {[%emt 0:00:01]} d5 {[%emt 0:00:01]} 8. Nxe5 {[%emt 0:00:02]} Nxe5 {[%emt 0:00:02]} 9. dxe5 {[%emt 0:00:02]} c6 {[%emt 0:00:04]} 10. Nd2 {[%emt 0:00:02] C80: Open Ruy Lopez: Sidelines and 9 Nbd2.} Nxd2 {[%emt 0:00:17]} 11. Bxd2 {[%emt 0:00:04]} Be7 {[%emt 0:00:07]} 12. c3 {[%emt 0:00:10] The position is equal.} Bf5 {[%emt 0:00:02] [#]} 13. f4 $146 {[%emt 0:00:40]} ({Predecessor:} 13. Bc2 Qd7 14. Qb1 Bxc2 15. Qxc2 O-O 16. Rae1 Rae8 17. Kh1 Bd8 18. Re3 f6 19. exf6 Bxf6 {0-1 (68) Peng,H (2141)-Gao,R (2543) China 2017}) 13... Qd7 {[%emt 0:00:17]} 14. Be3 {[%emt 0:00:11]} O-O {[%emt 0:00:30]} 15. a4 {[%emt 0:00:11]} f6 {[%emt 0:00:14]} 16. Bd4 {[%emt 0:00:14]} fxe5 {[%emt 0:00:23]} 17. Bxe5 {[%emt 0:00:03]} Be4 {[%emt 0:00:17]} (17... Rae8 $11) 18. Qd4 {[%emt 0:00:11]} (18. axb5 $14 axb5 19. Qd4 Rxa1 20. Rxa1) 18... bxa4 $11 {[%emt 0:00:28]} 19. Rxa4 {[%emt 0:00:16]} (19. Qxa4 {is interesting.} Bc5+ 20. Kh1 Rf7 21. Rae1) 19... Rf7 {[%emt 0:00:09]} (19... Qb7 $5 {[%cal Rb7b3]} 20. Qd1 Kh8 $11) 20. Qe3 {[%emt 0:00:27] Black must now prevent Rxe4.} (20. Kh1 {looks sharper.} Bf6 21. Bxf6 gxf6 22. Bd1) 20... Bf5 {[%emt 0:00:20]} (20... Qg4 $2 21. Rxe4 dxe4 22. Qxe4 $18) 21. Rfa1 {[%emt 0:00:02]} Qb7 {[%emt 0:00:01]} 22. c4 {[%emt 0:00:05]} h6 {[%emt 0:00:19]} 23. cxd5 {[%emt 0:00:02]} cxd5 {[%emt 0:00:01]} 24. Rd1 {[%emt 0:00:21]} (24. Qf3 {is more complex.} Be4 25. Rxe4 dxe4 26. Bxf7+ Kxf7 27. Qg4) 24... Be6 {[%emt 0:00:02][%cal Od5d4] [#] Threatens to win with ...d4!} 25. Bxg7 {[%emt 0:00:12]} Kxg7 $17 {[%emt 0:00:01]} 26. Qxe6 {[%emt 0:00:03]} (26. f5 $17 Bxf5 27. Bxd5) 26... Qxb3 $19 {[%emt 0:00:01]} ({Avoid the trap} 26... Bc5+ $2 27. Kh1 Qxb3 28. Raa1 $19) 27. Rad4 {[%emt 0:00:02]} (27. Rda1) 27... Bc5 {[%emt 0:00:02]} 28. Qe5+ {[%emt 0:00:09]} Kh7 {[%emt 0:00:01] Weighted Error Value: White=0.76/Black=0.12 (very precise)} 0-1

[Event "4th Tata Steel India Blitz Women 2022"]
[Site "Kolkota"]
[Date "2022.12.03"]
[Round "5.4"]
[White "Ushenina, Anna"]
[Black "Kulkarni Bhakti"]
[Result "1/2-1/2"]
[ECO "D31"]
[WhiteElo "2454"]
[BlackElo "2359"]
[Annotator "TA"]
[PlyCount "82"]
[EventDate "2022.11.29"]
[EventType "tourn"]
[EventCountry "IND"]
[SourceTitle "playchess.com"]
[Source "ChessBase"]
[SourceQuality "1"]
[TimeControl "180+2"]

{[%evp 9,82,23,18,20,18,17,19,17,18,14,54,27,32,31,25,19,17,9,12,10,19,28,77,95,85,86,103,111,94,89,109,105,106,112,102,111,113,78,122,120,124,12,32,32,106,0,125,-31,-17,-103,-95,-85,-95,-90,-53,-45,41,47,51,37,34,-1,0,0,26,-37,0,0,0,-40,0,0,0,-45,0]} 1. d4 {[%emt 0:00:01]} d5 {[%emt 0:00:05]} 2. c4 {[%emt 0:00:02]} e6 {[%emt 0:00:01][%cal Be7e6,Be6d5][%mdl 32]} 3. Nc3 {[%emt 0:00:01]} a6 {[%emt 0:00:02]} 4. cxd5 {[%emt 0:00:09]} exd5 {[%emt 0:00:02]} 5. Bf4 {[%emt 0:00:01]} Nf6 {[%emt 0:00:05]} 6. e3 {[%emt 0:00:05] D31: Queen's Gambit Declined: Semi-Slav without ...Nf6 (+ Marshall Gambit and Noteboom) and Exchange Variation lines without ...Nf6.} Bd6 {[%emt 0:00:14]} 7. Bg5 {[%emt 0:00:01]} c6 {[%emt 0:00:02]} 8. Bd3 {[%emt 0:00:04] The position is equal.} h6 {[%emt 0:00:06]} 9. Bh4 {[%emt 0:00:01]} Be6 {[%emt 0:00:04]} 10. Nge2 {[%emt 0:00:04]} Nbd7 {[%emt 0:00:05]} 11. h3 {[%emt 0:00:04]} Qc7 {[%emt 0:00:07]} 12. Qc2 {[%emt 0:00:14]} Nh5 {[%emt 0:00:20] [#]} 13. f4 $146 {[%emt 0:00:10] Against g5} ({Predecessor:} 13. Bf5 Bxf5 14. Qxf5 g6 15. Qf3 Ng7 16. e4 dxe4 17. Qxe4+ Kf8 18. O-O Nf5 19. Bg3 {1-0 (42) Jubin,J (2259)-Majumder,S (1808) Chennai 2022}) 13... g5 $1 {[%emt 0:00:22] Prevents f5.} 14. fxg5 {[%emt 0:00:02]} Ng3 {[%emt 0:00:28] Prevents g6.} 15. Rg1 {[%emt 0:00:27]} hxg5 {[%emt 0:00:14]} (15... Nxe2 $11 16. Nxe2 (16. Kxe2 Be7 $15) 16... Be7) 16. Bxg5 $16 {[%emt 0:00:02]} Rg8 {[%emt 0:00:08]} 17. Bf4 {[%emt 0:00:05]} Nxe2 {[%emt 0:00:09]} 18. Nxe2 {[%emt 0:00:12]} Qa5+ {[%emt 0:00:16]} 19. Kd1 {[%emt 0:00:23][%cal Be1d1,Bd1c2,Bc2b1][%mdl 32]} (19. Kf2 {with more complications.} Qc7 20. a4 Nf6 21. Qc5) 19... Qc7 {[%emt 0:00:21]} 20. Qd2 {[%emt 0:00:22]} O-O-O {[%emt 0:00:06]} 21. Bxd6 {[%emt 0:00:06]} Qxd6 {[%emt 0:00:02] [#]} 22. Kc2 $1 {[%emt 0:00:08]} c5 {[%emt 0:00:08] And now ...c4 would win.} 23. Raf1 {[%emt 0:00:06]} Kb8 {[%emt 0:00:05]} 24. Kb1 {[%emt 0:00:02]} Rc8 {[%emt 0:00:08]} 25. Bf5 {[%emt 0:00:20]} (25. g4 $16) 25... Nb6 $11 {[%emt 0:00:01]} 26. dxc5 {[%emt 0:00:16]} Rxc5 {[%emt 0:00:03]} (26... Nc4 $1 $14 27. Qd4 Qxc5 28. Qxc5 Rxc5) 27. Qd4 {[%emt 0:00:11]} (27. Bd3 $16) 27... Rgc8 {[%emt 0:00:05] [#]} (27... Rc4 $11 28. Qd2 Bxf5+ 29. Rxf5 Rgc8) 28. Bxe6 $2 {[%emt 0:00:06]} ({Better is} 28. Bd3 $1 $16) 28... fxe6 $15 {[%emt 0:00:01][%cal Bf7e6,Be6e5][%mdl 32]} 29. Qf4 {[%emt 0:00:03]} (29. Rc1 $11) 29... e5 $17 {[%emt 0:00:02]} 30. Qf6 {[%emt 0:00:03]} Qc7 {[%emt 0:00:00] Hoping for ...Nc4.} 31. Rc1 {[%emt 0:00:03] Strongly threatening Rxc5.} Nc4 {[%emt 0:00:01] ( -> ...Nd2+)} (31... Ka7 {keeps more tension.} 32. Nc3 Na4 33. Qf2 Nxc3+ 34. bxc3 Rxc3 35. Qb2 d4) 32. Ka1 {[%emt 0:00:05]} Nxe3 {[%emt 0:00:02]} (32... Rc6 $15 33. Qf5 Nxe3 34. Rxc6 bxc6) 33. Rxc5 $14 {[%emt 0:00:02]} Qxc5 {[%emt 0:00:03]} 34. Qxe5+ {[%emt 0:00:01]} Ka8 {[%emt 0:00:01]} 35. a3 {[%emt 0:00:03]} (35. Qc3 {simplifies} Nc2+ 36. Kb1 Na3+ 37. Qxa3 Qc2+ 38. Ka1) 35... Nc2+ {[%emt 0:00:01]} 36. Kb1 $1 {[%emt 0:00:02]} ({Wrong is} 36. Ka2 $2 Qc4+ 37. b3 Qc5 $19) 36... Qc4 {[%emt 0:00:02][%cal Oc2a3] aiming for ...Nxa3+!} 37. Rc1 {[%emt 0:00:03]} (37. Qc3 $11 Nxa3+ 38. Kc1) 37... Qd3 {[%emt 0:00:02][%mdl 1024] Black has compensation.} (37... d4 $5 {[%cal Rd4d3]} 38. Qe4 Nxa3+ 39. bxa3 Qb3+ 40. Ka1 Qxa3+ 41. Kb1 Qb4+ 42. Ka1 Qa4+ 43. Kb1 Qb5+ 44. Ka1 Qa4+ 45. Kb1 Qb5+ 46. Ka1 Qa4+ $15) 38. Ka2 {[%emt 0:00:03]} Qc4+ {[%emt 0:00:01]} 39. Kb1 {[%emt 0:00:01]} Qd3 {[%emt 0:00:01] Against Qc3} (39... d4 $5 {[%cal Rd4d3]} 40. Qe4 Nxa3+ 41. bxa3 Qb3+ 42. Ka1 Qxa3+ 43. Kb1 Qb4+ 44. Ka1 Qa4+ 45. Kb2 Re8 $15) 40. Ka2 {[%emt 0:00:02]} Qc4+ {[%emt 0:00:01]} 41. Kb1 {[%emt 0:00:01]} Qd3 {[%emt 0:00:00] Inhibits Qc3.   Weighted Error Value: White=0.24 (precise) /Black=0.21 (precise)} (41... d4 $5 {[%cal Rd4d3]} 42. Qe4 Nxa3+ 43. bxa3 Qb3+ 44. Ka1 Qxa3+ 45. Kb1 Qb4+ 46. Ka1 Qa4+ 47. Kb1 Qb3+ 48. Ka1 Qa4+ 49. Kb1 Qb5+ 50. Ka1 Qa4+ $15) 1/2-1/2